[Event "Late-Titled-Tuesday-Blitz-September-12-2023"]
[Site "Chess.com"]
[Date "2023.09.12"]
[Round "7"]
[White "Chessdemon2019"]
[Black "MathiasCasalaspro"]
[Result "0-1"]
[WhiteElo "2374"]
[BlackElo "2260"]
[TimeControl "180+1"]
[EndTime "15:14:57 PDT"]
[Termination "MathiasCasalaspro won by resignation"]

1. e4 {[%clk 0:03:00.9]} 1... c6 {[%clk 0:02:59.9]} 2. d4 {[%clk 0:03:01]} 2...
d5 {[%clk 0:03:00.1]} 3. Nc3 {[%clk 0:03:00.4]} 3... dxe4 {[%clk 0:03:00]} 4.
Nxe4 {[%clk 0:03:00.9]} 4... Nf6 {[%clk 0:03:00.9]} 5. Nxf6+ {[%clk 0:03:00.3]}
5... exf6 {[%clk 0:03:01.8]} 6. Be3 {[%clk 0:02:54.7]} 6... Bd6 {[%clk
0:03:01.7]} 7. Qd2 {[%clk 0:02:54.4]} 7... O-O {[%clk 0:03:01.5]} 8. Bd3 {[%clk
0:02:51.3]} 8... Be6 {[%clk 0:02:58.7]} 9. Nf3 {[%clk 0:02:49.7]} 9... Nd7
{[%clk 0:02:58.5]} 10. c3 {[%clk 0:02:47.3]} 10... Re8 {[%clk 0:02:58.2]} 11.
O-O {[%clk 0:02:43.8]} 11... Qc7 {[%clk 0:02:56.7]} 12. h3 {[%clk 0:02:43]}
12... Nf8 {[%clk 0:02:55.6]} 13. c4 {[%clk 0:02:36.8]} 13... Ng6 {[%clk
0:02:53.7]} 14. d5 {[%clk 0:02:32.5]} 14... cxd5 {[%clk 0:02:41.3]} 15. cxd5
{[%clk 0:02:32.7]} 15... Bxd5 {[%clk 0:02:31.4]} 16. Bxg6 {[%clk 0:02:21.2]}
16... Bxf3 {[%clk 0:02:31]} 17. Rac1 {[%clk 0:02:07.9]} 17... Qd7 {[%clk
0:02:21.4]} 18. gxf3 {[%clk 0:01:54.1]} 18... hxg6 {[%clk 0:02:15.1]} 19. Rfd1
{[%clk 0:01:53.7]} 19... Rad8 {[%clk 0:02:14.7]} 20. Bf4 {[%clk 0:01:48.5]}
20... Bxf4 {[%clk 0:02:04.5]} 21. Qxf4 {[%clk 0:01:48.5]} 21... Qxd1+ {[%clk
0:01:56.9]} 22. Rxd1 {[%clk 0:01:48.8]} 22... Rxd1+ {[%clk 0:01:57.8]} 23. Kg2
{[%clk 0:01:49.4]} 23... Ree1 {[%clk 0:01:58.6]} 24. Qb8+ {[%clk 0:01:44.7]}
24... Kh7 {[%clk 0:01:58.5]} 25. Qxb7 {[%clk 0:01:44.8]} 25... Rg1+ {[%clk
0:01:48.9]} 26. Kh2 {[%clk 0:01:45]} 26... Rh1+ {[%clk 0:01:44]} 27. Kg3 {[%clk
0:01:44.9]} 27... g5 {[%clk 0:01:43.6]} 28. f4 {[%clk 0:01:43.8]} 28... Rdg1+
{[%clk 0:01:37]} 29. Kf3 {[%clk 0:01:43.4]} 29... Rxh3+ {[%clk 0:01:36.8]} 30.
Ke2 {[%clk 0:01:42.6]} 30... gxf4 {[%clk 0:01:25.7]} 31. Qxa7 {[%clk 0:01:31.4]}
31... f3+ {[%clk 0:01:14.9]} 32. Kd2 {[%clk 0:01:31.1]} 32... Rh2 {[%clk
0:01:08.7]} 33. Qe3 {[%clk 0:01:26.1]} 33... Rgg2 {[%clk 0:01:07.3]} 34. Qe4+
{[%clk 0:01:22.3]} 34... g6 {[%clk 0:01:06]} 35. Qb7 {[%clk 0:01:08.1]} 35...
Rxf2+ {[%clk 0:01:04.7]} 36. Ke3 {[%clk 0:01:08.5]} 36... Kg7 {[%clk 0:00:59.3]}
37. b4 {[%clk 0:01:02.9]} 37... Rxa2 {[%clk 0:00:58.9]} 38. Kxf3 {[%clk
0:01:01.8]} 38... Rhb2 {[%clk 0:00:57]} 39. b5 {[%clk 0:01:00.9]} 39... Ra3+
{[%clk 0:00:57.2]} 40. Ke4 {[%clk 0:01:01]} 40... Rab3 {[%clk 0:00:58.1]} 41.
Qc7 {[%clk 0:00:59.2]} 41... Rxb5 {[%clk 0:00:57.2]} 42. Kf3 {[%clk 0:00:57]}
42... Rf5+ {[%clk 0:00:55.4]} 43. Ke3 {[%clk 0:00:55.5]} 43... Rbb5 {[%clk
0:00:56.3]} 44. Ke4 {[%clk 0:00:53.2]} 44... Rbe5+ {[%clk 0:00:56.2]} 45. Kd4
{[%clk 0:00:53.7]} 45... Rf4+ {[%clk 0:00:56]} 46. Kd3 {[%clk 0:00:53.7]} 46...
g5 {[%clk 0:00:56.7]} 47. Kd2 {[%clk 0:00:48.5]} 47... Rd4+ {[%clk 0:00:54.8]}
48. Kc3 {[%clk 0:00:48]} 48... Rdd5 {[%clk 0:00:55.7]} 49. Qb6 {[%clk
0:00:43.7]} 49... f5 {[%clk 0:00:47.1]} 50. Kc4 {[%clk 0:00:42.6]} 50... g4
{[%clk 0:00:44.6]} 51. Qf2 {[%clk 0:00:41.9]} 51... Kg6 {[%clk 0:00:36.7]} 52.
Qh4 {[%clk 0:00:38.4]} 52... Ra5 {[%clk 0:00:31.4]} 53. Qh8 {[%clk 0:00:36.6]}
53... Re4+ {[%clk 0:00:31.3]} 54. Kd3 {[%clk 0:00:36.5]} 54... Rd5+ {[%clk
0:00:31]} 55. Kc3 {[%clk 0:00:35.7]} 55... Rde5 {[%clk 0:00:17.5]} 56. Qg8+
{[%clk 0:00:35]} 56... Kf6 {[%clk 0:00:17.8]} 57. Qf8 {[%clk 0:00:31.4]} 57...
Kg5 {[%clk 0:00:13.4]} 58. Qxf7 {[%clk 0:00:28.9]} 58... Re3+ {[%clk 0:00:11]}
59. Kd4 {[%clk 0:00:28.4]} 59... R5e4+ {[%clk 0:00:11.4]} 60. Kd5 {[%clk
0:00:28.4]} 60... Kf4 {[%clk 0:00:12.1]} 61. Qg6 {[%clk 0:00:25.7]} 61... g3
{[%clk 0:00:10.4]} 62. Qh6+ {[%clk 0:00:26.1]} 62... Kf3 {[%clk 0:00:10.8]} 63.
Qg5 {[%clk 0:00:26.5]} 63... Re5+ {[%clk 0:00:08.8]} 64. Kd4 {[%clk 0:00:25.9]}
64... f4 {[%clk 0:00:07.7]} 65. Qg6 {[%clk 0:00:23.3]} 65... R5e4+ {[%clk
0:00:07.5]} 66. Kd5 {[%clk 0:00:23]} 66... Kf2 {[%clk 0:00:08]} 67. Qa6 {[%clk
0:00:20.2]} 67... g2 {[%clk 0:00:07.4]} 68. Qa2+ {[%clk 0:00:20.3]} 68... Re2
{[%clk 0:00:07.9]} 69. Qa7+ {[%clk 0:00:20.2]} 69... R4e3 {[%clk 0:00:08.3]} 70.
Qa4 {[%clk 0:00:19.4]} 70... f3 {[%clk 0:00:08]} 71. Qh4+ {[%clk 0:00:19.2]}
71... Kf1 {[%clk 0:00:08.3]} 72. Kd4 {[%clk 0:00:18.1]} 72... Re4+ {[%clk
0:00:07.8]} 73. Qxe4 {[%clk 0:00:17.8]} 73... Rxe4+ {[%clk 0:00:08.7]} 74. Kxe4
{[%clk 0:00:18.6]} 74... g1=Q {[%clk 0:00:09.6]} 75. Kxf3 {[%clk 0:00:18.9]}
75... Qg2+ {[%clk 0:00:09.9]} 76. Ke3 {[%clk 0:00:19.2]} 76... Qg3+ {[%clk
0:00:10.4]} 0-1

[Event "Late-Titled-Tuesday-Blitz-September-12-2023"]
[Site "Chess.com"]
[Date "2023.09.12"]
[Round "7"]
[White "Mikhal867"]
[Black "Hilary46"]
[Result "1-0"]
[WhiteElo "2452"]
[BlackElo "2539"]
[TimeControl "180+1"]
[EndTime "15:15:02 PDT"]
[Termination "Mikhal867 won on time"]

1. c4 {[%clk 0:02:55.5]} 1... Nf6 {[%clk 0:02:59.4]} 2. Nc3 {[%clk 0:02:55.1]}
2... e6 {[%clk 0:02:59.9]} 3. e4 {[%clk 0:02:54.8]} 3... d5 {[%clk 0:03:00.3]}
4. e5 {[%clk 0:02:54.9]} 4... d4 {[%clk 0:03:00.9]} 5. exf6 {[%clk 0:02:54.7]}
5... dxc3 {[%clk 0:03:01.5]} 6. bxc3 {[%clk 0:02:54.1]} 6... Qxf6 {[%clk
0:03:02]} 7. d4 {[%clk 0:02:53.7]} 7... e5 {[%clk 0:03:02.5]} 8. Nf3 {[%clk
0:02:50.8]} 8... Nc6 {[%clk 0:03:03]} 9. Be2 {[%clk 0:02:36.9]} 9... exd4 {[%clk
0:02:52.9]} 10. cxd4 {[%clk 0:02:36.9]} 10... Bb4+ {[%clk 0:02:52.9]} 11. Bd2
{[%clk 0:02:36.3]} 11... Bxd2+ {[%clk 0:02:51.7]} 12. Qxd2 {[%clk 0:02:36.6]}
12... Bg4 {[%clk 0:02:51.7]} 13. Qe3+ {[%clk 0:02:20.5]} 13... Qe7 {[%clk
0:02:48.5]} 14. Qxe7+ {[%clk 0:02:19.3]} 14... Kxe7 {[%clk 0:02:49.4]} 15. O-O-O
{[%clk 0:02:10.3]} 15... Rad8 {[%clk 0:02:47.6]} 16. Rhe1 {[%clk 0:02:07.8]}
16... Kf8 {[%clk 0:02:09.7]} 17. h3 {[%clk 0:01:57.9]} 17... Bh5 {[%clk
0:01:43.8]} 18. d5 {[%clk 0:01:52.3]} 18... Nb8 {[%clk 0:01:36.7]} 19. Nd4
{[%clk 0:01:39.7]} 19... Bxe2 {[%clk 0:01:36.4]} 20. Rxe2 {[%clk 0:01:39.4]}
20... a6 {[%clk 0:01:16.4]} 21. Rde1 {[%clk 0:01:38.2]} 21... g6 {[%clk
0:01:10.3]} 22. Re7 {[%clk 0:01:36.3]} 22... Nd7 {[%clk 0:01:09.7]} 23. Nf3
{[%clk 0:01:28.3]} 23... h6 {[%clk 0:01:02.7]} 24. Nd4 {[%clk 0:01:02.4]} 24...
Rg8 {[%clk 0:00:36.1]} 25. Kc2 {[%clk 0:00:58]} 25... g5 {[%clk 0:00:36]} 26. c5
{[%clk 0:00:40]} 26... Nxc5 {[%clk 0:00:27.2]} 27. Rxc7 {[%clk 0:00:40]} 27...
Rxd5 {[%clk 0:00:27.6]} 28. Kc3 {[%clk 0:00:23.8]} 28... Kg7 {[%clk 0:00:20]}
29. Ree7 {[%clk 0:00:21.4]} 29... Rxd4 {[%clk 0:00:11.6]} 30. Kxd4 {[%clk
0:00:20.8]} 30... b6 {[%clk 0:00:07.3]} 31. Rxf7+ {[%clk 0:00:18.7]} 31... Kg6
{[%clk 0:00:07.8]} 32. Rfe7 {[%clk 0:00:13.6]} 32... Kf6 {[%clk 0:00:06.9]} 33.
Rh7 {[%clk 0:00:12.9]} 33... Ne6+ {[%clk 0:00:05.7]} 34. Ke3 {[%clk 0:00:08.7]}
34... Nxc7 {[%clk 0:00:06.6]} 35. Rxc7 {[%clk 0:00:08.7]} 35... Re8+ {[%clk
0:00:06.9]} 36. Kf3 {[%clk 0:00:09]} 36... Re6 {[%clk 0:00:07.1]} 37. Ra7 {[%clk
0:00:09.1]} 37... a5 {[%clk 0:00:06.8]} 38. g3 {[%clk 0:00:08.6]} 38... Kf5
{[%clk 0:00:06.4]} 39. h4 {[%clk 0:00:08.4]} 39... g4+ {[%clk 0:00:05.4]} 40.
Kg2 {[%clk 0:00:08.2]} 40... Ke4 {[%clk 0:00:02.3]} 41. Rg7 {[%clk 0:00:07]}
41... Kf5 {[%clk 0:00:02.8]} 42. Rf7+ {[%clk 0:00:07]} 42... Ke5 {[%clk
0:00:02.4]} 43. Rf4 {[%clk 0:00:06.8]} 43... Rg6 {[%clk 0:00:02]} 44. Rc4 {[%clk
0:00:06.2]} 44... Kd5 {[%clk 0:00:01.7]} 45. Rf4 {[%clk 0:00:06.2]} 45... b5
{[%clk 0:00:02.2]} 46. f3 {[%clk 0:00:06.5]} 46... Ke5 {[%clk 0:00:02.4]} 47.
fxg4 {[%clk 0:00:06.2]} 47... Kd5 {[%clk 0:00:02.3]} 48. Kh3 {[%clk 0:00:05.7]}
48... b4 {[%clk 0:00:02.7]} 49. Rf5+ {[%clk 0:00:05.5]} 49... Kc4 {[%clk
0:00:02.5]} 50. Rxa5 {[%clk 0:00:05.5]} 50... Rd6 {[%clk 0:00:03.3]} 51. Ra8
{[%clk 0:00:04.9]} 51... Rd1 {[%clk 0:00:02.7]} 52. g5 {[%clk 0:00:05]} 52...
hxg5 {[%clk 0:00:03.1]} 53. h5 {[%clk 0:00:04.4]} 53... Rh1+ {[%clk 0:00:02.2]}
54. Kg4 {[%clk 0:00:04.6]} 54... Kd5 {[%clk 0:00:01.8]} 55. Kxg5 {[%clk
0:00:04.3]} 55... Ke6 {[%clk 0:00:02.7]} 56. g4 {[%clk 0:00:04.6]} 56... Kf7
{[%clk 0:00:02.9]} 57. Rb8 {[%clk 0:00:05]} 57... Rb1 {[%clk 0:00:02]} 58. Rb7+
{[%clk 0:00:05.4]} 58... Kg8 {[%clk 0:00:01.6]} 59. Kg6 {[%clk 0:00:05.6]} 59...
Kf8 {[%clk 0:00:02.1]} 60. g5 {[%clk 0:00:05.2]} 60... Rc1 {[%clk 0:00:01.9]}
61. Rb8+ {[%clk 0:00:04.8]} 61... Ke7 {[%clk 0:00:02]} 62. h6 {[%clk 0:00:05.2]}
62... Rc6+ {[%clk 0:00:01.8]} 63. Kh5 {[%clk 0:00:05.5]} 1-0

[Event "Late-Titled-Tuesday-Blitz-September-12-2023"]
[Site "Chess.com"]
[Date "2023.09.12"]
[Round "7"]
[White "Korchmar_Vasiliy"]
[Black "zverr1"]
[Result "1-0"]
[WhiteElo "2705"]
[BlackElo "2495"]
[TimeControl "180+1"]
[EndTime "15:15:04 PDT"]
[Termination "Korchmar_Vasiliy won by resignation"]

1. e4 {[%clk 0:03:00.9]} 1... c5 {[%clk 0:02:59.5]} 2. d4 {[%clk 0:03:00.7]}
2... cxd4 {[%clk 0:02:58.9]} 3. Qxd4 {[%clk 0:03:01.6]} 3... Nc6 {[%clk
0:02:57.9]} 4. Qd3 {[%clk 0:03:01.9]} 4... Nf6 {[%clk 0:02:57.2]} 5. Nc3 {[%clk
0:03:01.5]} 5... g6 {[%clk 0:02:57.6]} 6. Nf3 {[%clk 0:03:01.2]} 6... Bg7 {[%clk
0:02:53.5]} 7. Be2 {[%clk 0:03:01.8]} 7... O-O {[%clk 0:02:52.3]} 8. O-O {[%clk
0:03:02.3]} 8... d6 {[%clk 0:02:52.9]} 9. Nd5 {[%clk 0:03:02.2]} 9... Ng4 {[%clk
0:02:45.7]} 10. c3 {[%clk 0:02:57.7]} 10... Bd7 {[%clk 0:02:39.1]} 11. Bg5
{[%clk 0:02:57]} 11... h6 {[%clk 0:02:31.7]} 12. Bh4 {[%clk 0:02:56.2]} 12... g5
{[%clk 0:02:30.3]} 13. Bg3 {[%clk 0:02:55.8]} 13... Rc8 {[%clk 0:02:25.2]} 14.
Rad1 {[%clk 0:02:54.5]} 14... Nge5 {[%clk 0:02:06.9]} 15. Nxe5 {[%clk 0:02:53]}
15... Nxe5 {[%clk 0:02:07.8]} 16. Qd2 {[%clk 0:02:53.6]} 16... Nc4 {[%clk
0:02:04.4]} 17. Bxc4 {[%clk 0:02:50.9]} 17... Rxc4 {[%clk 0:02:05.3]} 18. Nxe7+
{[%clk 0:02:49.3]} 18... Qxe7 {[%clk 0:01:47.6]} 19. Bxd6 {[%clk 0:02:48.1]}
19... Qxe4 {[%clk 0:01:45.6]} 20. Bxf8 {[%clk 0:02:39.4]} 20... Bc6 {[%clk
0:01:23.1]} 21. f3 {[%clk 0:02:38.5]} 21... Qe5 {[%clk 0:01:19.4]} 22. Bxg7
{[%clk 0:02:35.8]} 22... Kxg7 {[%clk 0:01:20.3]} 23. Rfe1 {[%clk 0:02:31.3]}
23... Qc5+ {[%clk 0:01:18.5]} 24. Qe3 {[%clk 0:02:31.2]} 24... Qf5 {[%clk
0:01:17.5]} 25. Qe5+ {[%clk 0:02:30.5]} 25... Qxe5 {[%clk 0:01:17]} 26. Rxe5
{[%clk 0:02:31.4]} 26... Ra4 {[%clk 0:01:16.9]} 27. a3 {[%clk 0:02:30.8]} 27...
Ra6 {[%clk 0:01:17.8]} 28. Kf2 {[%clk 0:02:19.9]} 28... Rb6 {[%clk 0:01:18]} 29.
Rd2 {[%clk 0:02:20.3]} 29... Ra6 {[%clk 0:01:15.9]} 30. Rd4 {[%clk 0:02:05.5]}
30... Kf6 {[%clk 0:01:11]} 31. Rc5 {[%clk 0:02:01]} 31... Rb6 {[%clk 0:01:10.3]}
32. Rb4 {[%clk 0:02:00.1]} 32... Ra6 {[%clk 0:01:10.9]} 33. h4 {[%clk 0:01:55]}
33... Kg6 {[%clk 0:01:05.4]} 34. Ke3 {[%clk 0:01:50.1]} 34... f6 {[%clk
0:01:05.1]} 35. hxg5 {[%clk 0:01:41.2]} 35... hxg5 {[%clk 0:01:04.3]} 36. g4
{[%clk 0:01:36.9]} 36... Kf7 {[%clk 0:01:04.2]} 37. f4 {[%clk 0:01:34.8]} 37...
gxf4+ {[%clk 0:01:02.4]} 38. Rxf4 {[%clk 0:01:32.4]} 38... Ke6 {[%clk
0:01:03.3]} 39. Rcf5 {[%clk 0:01:31.8]} 39... Rb6 {[%clk 0:01:00.6]} 40. Rxf6+
{[%clk 0:01:31.5]} 40... Ke7 {[%clk 0:01:01]} 41. Rf7+ {[%clk 0:01:22]} 41...
Ke8 {[%clk 0:01:01.1]} 42. Rf2 {[%clk 0:01:18.1]} 42... Rb5 {[%clk 0:00:56.9]}
43. R7f5 {[%clk 0:01:14.6]} 43... Rb6 {[%clk 0:00:57.3]} 44. Re5+ {[%clk
0:01:13.2]} 44... Kd7 {[%clk 0:00:57.3]} 45. Rd2+ {[%clk 0:01:13]} 45... Kc7
{[%clk 0:00:57.5]} 46. Re7+ {[%clk 0:01:13]} 46... Kc8 {[%clk 0:00:58.2]} 47. g5
{[%clk 0:01:12]} 47... Ba4 {[%clk 0:00:56.4]} 48. Kf4 {[%clk 0:01:03.2]} 48...
a6 {[%clk 0:00:55.4]} 49. Kf5 {[%clk 0:00:59]} 49... Rb5+ {[%clk 0:00:52.1]} 50.
Kf6 {[%clk 0:00:59.1]} 50... Rb6+ {[%clk 0:00:52.4]} 51. Re6 {[%clk 0:00:55.3]}
51... Rb5 {[%clk 0:00:52.4]} 52. g6 {[%clk 0:00:54.8]} 52... Bb3 {[%clk
0:00:52.7]} 53. Re8+ {[%clk 0:00:46.7]} 53... Kc7 {[%clk 0:00:52.8]} 54. g7
{[%clk 0:00:47.2]} 54... Rb6+ {[%clk 0:00:52.6]} 55. Kg5 {[%clk 0:00:44.4]}
55... Rb5+ {[%clk 0:00:52.3]} 56. Kf4 {[%clk 0:00:41.5]} 56... Rh5 {[%clk
0:00:50.9]} 57. g8=Q {[%clk 0:00:40.8]} 57... Bxg8 {[%clk 0:00:51.5]} 58. Rxg8
{[%clk 0:00:41.3]} 58... Kb6 {[%clk 0:00:51.5]} 59. Rg7 {[%clk 0:00:40.7]} 59...
Ka5 {[%clk 0:00:51.2]} 60. Rxb7 {[%clk 0:00:38.8]} 60... Ka4 {[%clk 0:00:50.9]}
61. Ke4 {[%clk 0:00:23.1]} 61... Rh8 {[%clk 0:00:45.5]} 62. b3+ {[%clk
0:00:19.9]} 62... Kxa3 {[%clk 0:00:44.1]} 63. c4 {[%clk 0:00:17.7]} 63... a5
{[%clk 0:00:41.7]} 64. c5 {[%clk 0:00:17.6]} 64... Rc8 {[%clk 0:00:41.8]} 65.
Rc2 {[%clk 0:00:15.1]} 65... a4 {[%clk 0:00:37.1]} 66. bxa4 {[%clk 0:00:13.8]}
66... Rc6 {[%clk 0:00:36]} 67. Kd5 {[%clk 0:00:12.9]} 67... Ra6 {[%clk
0:00:35.7]} 68. c6 {[%clk 0:00:12.2]} 68... Ra5+ {[%clk 0:00:36.1]} 69. Kd6
{[%clk 0:00:12.2]} 69... Rxa4 {[%clk 0:00:36.5]} 70. Rc3+ {[%clk 0:00:10.1]}
70... Ka2 {[%clk 0:00:36.4]} 71. c7 {[%clk 0:00:09.8]} 71... Rd4+ {[%clk
0:00:37]} 72. Kc5 {[%clk 0:00:09]} 72... Ra4 {[%clk 0:00:35.2]} 73. c8=Q {[%clk
0:00:07]} 73... Ra5+ {[%clk 0:00:35.8]} 74. Kb6 {[%clk 0:00:06.2]} 74... Ra4
{[%clk 0:00:34.2]} 75. Rc2+ {[%clk 0:00:06.6]} 75... Ka1 {[%clk 0:00:34.5]} 76.
Rc1+ {[%clk 0:00:06.9]} 76... Ka2 {[%clk 0:00:33.9]} 77. Qc2+ {[%clk 0:00:07]}
77... Ka3 {[%clk 0:00:34.2]} 78. Ra1+ {[%clk 0:00:07.1]} 1-0

[Event "Late-Titled-Tuesday-Blitz-September-12-2023"]
[Site "Chess.com"]
[Date "2023.09.12"]
[Round "7"]
[White "younix2022"]
[Black "HrvojeZagreb"]
[Result "0-1"]
[WhiteElo "2056"]
[BlackElo "2277"]
[TimeControl "180+1"]
[EndTime "15:15:14 PDT"]
[Termination "HrvojeZagreb won by resignation"]

1. Nf3 {[%clk 0:02:59.7]} 1... f5 {[%clk 0:02:58.6]} 2. e4 {[%clk 0:02:59.1]}
2... fxe4 {[%clk 0:02:58.4]} 3. Ng5 {[%clk 0:02:59.4]} 3... Nf6 {[%clk
0:02:54.1]} 4. d3 {[%clk 0:02:59.2]} 4... e5 {[%clk 0:02:28.1]} 5. Nc3 {[%clk
0:02:57.1]} 5... d6 {[%clk 0:02:22.7]} 6. Ncxe4 {[%clk 0:02:54]} 6... Bf5 {[%clk
0:02:13.9]} 7. Nxf6+ {[%clk 0:02:43.1]} 7... Qxf6 {[%clk 0:02:11.9]} 8. Ne4
{[%clk 0:02:40.4]} 8... Qf7 {[%clk 0:02:04.6]} 9. Bg5 {[%clk 0:02:32.5]} 9...
Nc6 {[%clk 0:02:00]} 10. c3 {[%clk 0:02:30.6]} 10... Be7 {[%clk 0:01:59]} 11.
Bxe7 {[%clk 0:02:21.5]} 11... Nxe7 {[%clk 0:01:59.9]} 12. Qb3 {[%clk 0:02:19.9]}
12... Qxb3 {[%clk 0:01:56]} 13. axb3 {[%clk 0:02:19.7]} 13... a6 {[%clk
0:01:56.1]} 14. Be2 {[%clk 0:02:10.4]} 14... O-O {[%clk 0:01:53.8]} 15. O-O
{[%clk 0:02:09.2]} 15... Nd5 {[%clk 0:01:50.8]} 16. g3 {[%clk 0:01:59.9]} 16...
h6 {[%clk 0:01:47.6]} 17. b4 {[%clk 0:01:58.3]} 17... Nf6 {[%clk 0:01:37.1]} 18.
f3 {[%clk 0:01:51.8]} 18... Nd5 {[%clk 0:01:27.4]} 19. Kf2 {[%clk 0:01:40.3]}
19... g5 {[%clk 0:01:26.8]} 20. Ra5 {[%clk 0:01:27.8]} 20... Be6 {[%clk
0:01:14.7]} 21. Ke1 {[%clk 0:01:19.5]} 21... b6 {[%clk 0:01:05.6]} 22. Ra2
{[%clk 0:01:13.7]} 22... a5 {[%clk 0:01:03.5]} 23. bxa5 {[%clk 0:01:12.7]} 23...
Rxa5 {[%clk 0:01:04]} 24. Rxa5 {[%clk 0:01:12.7]} 24... bxa5 {[%clk 0:01:04.9]}
25. Kd2 {[%clk 0:01:11.3]} 25... Rb8 {[%clk 0:01:02.6]} 26. Kc1 {[%clk
0:01:06.5]} 26... Kg7 {[%clk 0:00:59.6]} 27. Nd2 {[%clk 0:01:00.6]} 27... a4
{[%clk 0:00:55.3]} 28. Nc4 {[%clk 0:00:58.4]} 28... Nb6 {[%clk 0:00:49.6]} 29.
Na3 {[%clk 0:00:56.6]} 29... Bb3 {[%clk 0:00:45.8]} 30. d4 {[%clk 0:00:53.5]}
30... exd4 {[%clk 0:00:40.6]} 31. cxd4 {[%clk 0:00:52.5]} 31... Re8 {[%clk
0:00:40.7]} 32. Bd3 {[%clk 0:00:49.2]} 32... Re3 {[%clk 0:00:34.1]} 33. Kd2
{[%clk 0:00:48.2]} 33... Re7 {[%clk 0:00:29.4]} 34. Re1 {[%clk 0:00:48.2]} 34...
Rxe1 {[%clk 0:00:28.5]} 35. Kxe1 {[%clk 0:00:48.4]} 35... c6 {[%clk 0:00:24.6]}
36. Kd2 {[%clk 0:00:47.3]} 36... Kf6 {[%clk 0:00:24.1]} 37. Kc3 {[%clk
0:00:42.8]} 37... Nd5+ {[%clk 0:00:22.2]} 38. Kd2 {[%clk 0:00:42.7]} 38... h5
{[%clk 0:00:19.4]} 39. Bc4 {[%clk 0:00:41.5]} 39... Bxc4 {[%clk 0:00:16.1]} 40.
Nxc4 {[%clk 0:00:42.4]} 40... Ke6 {[%clk 0:00:16]} 41. Kd3 {[%clk 0:00:35.8]}
41... Ke7 {[%clk 0:00:12.6]} 42. Ne3 {[%clk 0:00:32.1]} 42... Nf6 {[%clk
0:00:09.5]} 43. Nf5+ {[%clk 0:00:31.8]} 43... Ke6 {[%clk 0:00:07.9]} 44. Ng7+
{[%clk 0:00:32]} 44... Kd5 {[%clk 0:00:07.2]} 45. f4 {[%clk 0:00:28.5]} 45...
gxf4 {[%clk 0:00:06.2]} 46. gxf4 {[%clk 0:00:28.9]} 46... h4 {[%clk 0:00:06.3]}
47. Nf5 {[%clk 0:00:28]} 47... h3 {[%clk 0:00:06.2]} 48. Ne7+ {[%clk 0:00:27.8]}
48... Ke6 {[%clk 0:00:05.7]} 49. Nxc6 {[%clk 0:00:28.6]} 49... Ng4 {[%clk
0:00:06.2]} 50. Ke4 {[%clk 0:00:23.5]} 50... Nxh2 {[%clk 0:00:06.3]} 51. d5+
{[%clk 0:00:22.8]} 51... Kd7 {[%clk 0:00:05.8]} 52. f5 {[%clk 0:00:21]} 52...
Ng4 {[%clk 0:00:05.8]} 53. Kf3 {[%clk 0:00:18.7]} 53... Nf6 {[%clk 0:00:04.5]}
54. Nd4 {[%clk 0:00:16.6]} 54... Nxd5 {[%clk 0:00:04.2]} 55. Kg3 {[%clk
0:00:13.6]} 55... Nb4 {[%clk 0:00:04.4]} 56. Kxh3 {[%clk 0:00:13.4]} 56... Nd3
{[%clk 0:00:04.8]} 57. b3 {[%clk 0:00:10.4]} 57... a3 {[%clk 0:00:04.5]} 58. Nc2
{[%clk 0:00:10.6]} 58... a2 {[%clk 0:00:04.5]} 59. Kg4 {[%clk 0:00:10.6]} 59...
Nb4 {[%clk 0:00:04.4]} 60. Na1 {[%clk 0:00:10.8]} 60... Nd5 {[%clk 0:00:04.2]}
61. Kg5 {[%clk 0:00:11.7]} 61... Ke7 {[%clk 0:00:04.5]} 62. Kg6 {[%clk
0:00:11.4]} 62... Nf6 {[%clk 0:00:04.4]} 63. b4 {[%clk 0:00:11.6]} 63... d5
{[%clk 0:00:04.8]} 64. b5 {[%clk 0:00:11.9]} 64... d4 {[%clk 0:00:05.2]} 65. b6
{[%clk 0:00:12.3]} 65... Nd7 {[%clk 0:00:05.5]} 66. b7 {[%clk 0:00:12.1]} 66...
d3 {[%clk 0:00:05.1]} 67. f6+ {[%clk 0:00:11.2]} 67... Kf8 {[%clk 0:00:05.4]}
68. Nb3 {[%clk 0:00:05.4]} 68... Nb8 {[%clk 0:00:05.1]} 69. Nc5 {[%clk
0:00:04.1]} 69... a1=Q {[%clk 0:00:05.3]} 70. Ne6+ {[%clk 0:00:05]} 70... Ke8
{[%clk 0:00:05.8]} 71. f7+ {[%clk 0:00:05.6]} 71... Kd7 {[%clk 0:00:05.9]} 72.
f8=Q {[%clk 0:00:06.5]} 72... Kxe6 {[%clk 0:00:06.2]} 73. Qg8+ {[%clk
0:00:06.7]} 73... Kd6 {[%clk 0:00:06.3]} 74. Qh8 {[%clk 0:00:07.4]} 74... Qxh8
{[%clk 0:00:05.7]} 0-1